[Event "*** SCC Grand Prix: Titled Tuesday Blitz"]
[Site "Chess.com"]
[Date "2020.06.23"]
[Round "10"]
[White "JoachimMouhamad"]
[Black "WinstonSilvakov"]
[Result "1-0"]
[WhiteElo "2422"]
[BlackElo "2139"]
[TimeControl "180+1"]
[EndTime "11:57:42 PDT"]
[Termination "JoachimMouhamad won by resignation"]

1. e4 {[%clk 0:03:00.9]} 1... Nf6 {[%clk 0:02:59.7]} 2. e5 {[%clk 0:02:57.4]}
2... Nd5 {[%clk 0:02:59.9]} 3. d4 {[%clk 0:02:55.3]} 3... d6 {[%clk 0:02:59.8]}
4. c4 {[%clk 0:02:55.4]} 4... Nb6 {[%clk 0:02:59.7]} 5. exd6 {[%clk 0:02:55.6]}
5... cxd6 {[%clk 0:02:59.1]} 6. Nc3 {[%clk 0:02:55.6]} 6... g6 {[%clk
0:02:59.4]} 7. Be3 {[%clk 0:02:55.4]} 7... Bg7 {[%clk 0:02:59.4]} 8. Rc1 {[%clk
0:02:55.5]} 8... O-O {[%clk 0:02:56.8]} 9. b3 {[%clk 0:02:46.1]} 9... e5 {[%clk
0:02:47.4]} 10. dxe5 {[%clk 0:02:37.2]} 10... dxe5 {[%clk 0:02:46.5]} 11. Qxd8
{[%clk 0:02:36.5]} 11... Rxd8 {[%clk 0:02:45.7]} 12. Nf3 {[%clk 0:02:14.3]}
12... Bg4 {[%clk 0:02:38.7]} 13. Be2 {[%clk 0:02:12.2]} 13... Nc6 {[%clk
0:02:35.5]} 14. O-O {[%clk 0:02:07.7]} 14... f5 {[%clk 0:02:22.4]} 15. Rfd1
{[%clk 0:01:59.1]} 15... Bxf3 {[%clk 0:02:20.9]} 16. gxf3 {[%clk 0:01:47.8]}
16... Nd4 {[%clk 0:02:17.9]} 17. Bxd4 {[%clk 0:01:44.1]} 17... Rxd4 {[%clk
0:02:08.1]} 18. Rxd4 {[%clk 0:01:35]} 18... exd4 {[%clk 0:02:09]} 19. Nd1 {[%clk
0:01:19.4]} 19... Nd7 {[%clk 0:01:47.7]} 20. c5 {[%clk 0:01:14.6]} 20... Rc8
{[%clk 0:01:44.3]} 21. b4 {[%clk 0:01:11.3]} 21... a5 {[%clk 0:01:42.2]} 22. a3
{[%clk 0:01:10.9]} 22... axb4 {[%clk 0:01:43.1]} 23. axb4 {[%clk 0:01:11.8]}
23... Ne5 {[%clk 0:01:33.7]} 24. Nb2 {[%clk 0:01:03.5]} 24... b6 {[%clk
0:01:13.8]} 25. Ba6 {[%clk 0:00:18.2]} 25... Rc7 {[%clk 0:00:53.2]} 26. Nc4
{[%clk 0:00:14.1]} 26... bxc5 {[%clk 0:00:33.6]} 27. Nxe5 {[%clk 0:00:12.9]}
27... Bxe5 {[%clk 0:00:31.5]} 28. bxc5 {[%clk 0:00:12.2]} 28... Kf7 {[%clk
0:00:27]} 29. h3 {[%clk 0:00:11.6]} 29... Kf6 {[%clk 0:00:25.1]} 30. Kf1 {[%clk
0:00:11]} 30... Kg5 {[%clk 0:00:25.2]} 31. Ke2 {[%clk 0:00:10.5]} 31... Kf4
{[%clk 0:00:25.4]} 32. c6 {[%clk 0:00:05.5]} 32... g5 {[%clk 0:00:24.3]} 33. Bb7
{[%clk 0:00:05.2]} 33... h5 {[%clk 0:00:20.9]} 34. Rc2 {[%clk 0:00:04.9]} 34...
Re7 {[%clk 0:00:20.6]} 35. Kd3 {[%clk 0:00:03.9]} 35... Kxf3 {[%clk 0:00:18.4]}
36. c7+ {[%clk 0:00:03.7]} 36... Kf4 {[%clk 0:00:16.2]} 37. c8=Q {[%clk
0:00:04.6]} 37... Rxb7 {[%clk 0:00:15.2]} 38. Qxb7 {[%clk 0:00:04.3]} 38... g4
{[%clk 0:00:12.8]} 39. Qh1 {[%clk 0:00:05.2]} 39... h4 {[%clk 0:00:10.4]} 40.
hxg4 {[%clk 0:00:05.5]} 40... Kxg4 {[%clk 0:00:11.3]} 41. f3+ {[%clk 0:00:06]}
41... Kg5 {[%clk 0:00:10.8]} 42. Rg2+ {[%clk 0:00:05.2]} 42... Kh5 {[%clk
0:00:11.7]} 43. Rh2 {[%clk 0:00:05.3]} 43... Bxh2 {[%clk 0:00:09.9]} 44. Qxh2
{[%clk 0:00:06.2]} 44... Kg5 {[%clk 0:00:09.9]} 45. Kxd4 {[%clk 0:00:07.1]}
45... f4 {[%clk 0:00:10.4]} 46. Ke4 {[%clk 0:00:07.1]} 46... Kh5 {[%clk
0:00:10.6]} 47. Kxf4 {[%clk 0:00:07.1]} 47... Kg6 {[%clk 0:00:10.8]} 48. Qxh4
{[%clk 0:00:06.8]} 1-0

[Event "*** SCC Grand Prix: Titled Tuesday Blitz"]
[Site "Chess.com"]
[Date "2020.06.23"]
[Round "10"]
[White "KyrgyzFighter"]
[Black "MrChampion_Coach"]
[Result "1-0"]
[WhiteElo "2316"]
[BlackElo "2424"]
[TimeControl "180+1"]
[EndTime "11:57:43 PDT"]
[Termination "KyrgyzFighter won by checkmate"]

1. c4 {[%clk 0:03:00.9]} 1... e5 {[%clk 0:02:56.8]} 2. Nc3 {[%clk 0:03:01]} 2...
Bb4 {[%clk 0:02:56.6]} 3. Nd5 {[%clk 0:03:00.5]} 3... Na6 {[%clk 0:02:55.6]} 4.
e3 {[%clk 0:02:59.1]} 4... Nf6 {[%clk 0:02:54]} 5. a3 {[%clk 0:02:55.1]} 5...
Be7 {[%clk 0:02:52.9]} 6. g3 {[%clk 0:02:46.9]} 6... Nxd5 {[%clk 0:02:37.9]} 7.
cxd5 {[%clk 0:02:44.2]} 7... h5 {[%clk 0:02:37.2]} 8. h4 {[%clk 0:02:39.8]} 8...
Nc5 {[%clk 0:02:27.6]} 9. b4 {[%clk 0:02:35.4]} 9... Ne4 {[%clk 0:02:25.3]} 10.
Bb2 {[%clk 0:02:35.3]} 10... d6 {[%clk 0:02:25]} 11. d3 {[%clk 0:02:32]} 11...
Nf6 {[%clk 0:02:24.4]} 12. Qb3 {[%clk 0:02:30.6]} 12... a5 {[%clk 0:02:21.7]}
13. Ne2 {[%clk 0:02:21.9]} 13... Bg4 {[%clk 0:02:13.8]} 14. Bg2 {[%clk
0:02:10.9]} 14... axb4 {[%clk 0:01:59.4]} 15. axb4 {[%clk 0:02:07.8]} 15...
Rxa1+ {[%clk 0:01:57.4]} 16. Bxa1 {[%clk 0:02:08.7]} 16... O-O {[%clk
0:01:41.9]} 17. Nc3 {[%clk 0:02:08]} 17... Qd7 {[%clk 0:01:41.6]} 18. O-O {[%clk
0:01:56.9]} 18... Bh3 {[%clk 0:01:21.5]} 19. b5 {[%clk 0:01:52.8]} 19... Bxg2
{[%clk 0:01:15.4]} 20. Kxg2 {[%clk 0:01:51]} 20... Ng4 {[%clk 0:01:16.3]} 21. b6
{[%clk 0:01:45.6]} 21... f5 {[%clk 0:01:04.4]} 22. bxc7 {[%clk 0:01:39.9]} 22...
f4 {[%clk 0:01:02.9]} 23. exf4 {[%clk 0:01:06.2]} 23... exf4 {[%clk 0:01:02.1]}
24. Qxb7 {[%clk 0:01:06]} 24... f3+ {[%clk 0:00:49]} 25. Kg1 {[%clk 0:01:04.4]}
25... Rc8 {[%clk 0:00:45.9]} 26. Ne4 {[%clk 0:00:52]} 26... Rxc7 {[%clk
0:00:41.3]} 27. Qb8+ {[%clk 0:00:48]} 27... Rc8 {[%clk 0:00:41.2]} 28. Qb3
{[%clk 0:00:42.9]} 28... Ne5 {[%clk 0:00:20.5]} 29. Kh2 {[%clk 0:00:28.4]} 29...
Ng4+ {[%clk 0:00:19.1]} 30. Kg1 {[%clk 0:00:28.5]} 30... Bxh4 {[%clk 0:00:19.4]}
31. d4 {[%clk 0:00:16.1]} 31... Bf6 {[%clk 0:00:16.2]} 32. Qxf3 {[%clk
0:00:15.5]} 32... Rf8 {[%clk 0:00:14.4]} 33. Re1 {[%clk 0:00:15.7]} 33... Bxd4
{[%clk 0:00:13.3]} 34. Qd3 {[%clk 0:00:15.9]} 34... Nxf2 {[%clk 0:00:12.8]} 35.
Qxd4 {[%clk 0:00:15.5]} 35... Qg4 {[%clk 0:00:09.8]} 36. Qxg7+ {[%clk
0:00:11.1]} 36... Qxg7 {[%clk 0:00:08.3]} 37. Bxg7 {[%clk 0:00:12]} 37... Nh3+
{[%clk 0:00:04.4]} 38. Kg2 {[%clk 0:00:12.2]} 38... Nf4+ {[%clk 0:00:04.5]} 39.
gxf4 {[%clk 0:00:12.4]} 39... Kxg7 {[%clk 0:00:05.4]} 40. Nxd6 {[%clk
0:00:12.9]} 40... Rxf4 {[%clk 0:00:05.4]} 41. Kg3 {[%clk 0:00:13.5]} 41... Rd4
{[%clk 0:00:05.3]} 42. Nf5+ {[%clk 0:00:13.9]} 42... Kf6 {[%clk 0:00:06.2]} 43.
Nxd4 {[%clk 0:00:14.8]} 43... h4+ {[%clk 0:00:06.9]} 44. Kxh4 {[%clk 0:00:15]}
44... Kf7 {[%clk 0:00:07.8]} 45. d6 {[%clk 0:00:15.9]} 45... Kf6 {[%clk
0:00:08.7]} 46. d7 {[%clk 0:00:16.8]} 46... Kf7 {[%clk 0:00:07]} 47. d8=Q {[%clk
0:00:16.9]} 47... Kg6 {[%clk 0:00:07.6]} 48. Rg1+ {[%clk 0:00:16.8]} 48... Kf7
{[%clk 0:00:07.8]} 49. Qd7+ {[%clk 0:00:16.1]} 49... Kf6 {[%clk 0:00:08.7]} 50.
Qe6# {[%clk 0:00:16.4]} 1-0

[Event "*** SCC Grand Prix: Titled Tuesday Blitz"]
[Site "Chess.com"]
[Date "2020.06.23"]
[Round "10"]
[White "skoularikii"]
[Black "Spartakus1975"]
[Result "0-1"]
[WhiteElo "2504"]
[BlackElo "2686"]
[TimeControl "180+1"]
[EndTime "11:57:46 PDT"]
[Termination "Spartakus1975 won by resignation"]

1. e4 {[%clk 0:03:00.9]} 1... e6 {[%clk 0:02:59.4]} 2. d4 {[%clk 0:02:59.6]}
2... d5 {[%clk 0:02:59.9]} 3. Nc3 {[%clk 0:02:59.4]} 3... Nf6 {[%clk 0:02:58.8]}
4. Bg5 {[%clk 0:02:58.7]} 4... Bb4 {[%clk 0:02:57.2]} 5. e5 {[%clk 0:02:58.1]}
5... h6 {[%clk 0:02:55.7]} 6. Bc1 {[%clk 0:02:58.7]} 6... Ne4 {[%clk 0:02:53.7]}
7. Ne2 {[%clk 0:02:58.3]} 7... c5 {[%clk 0:02:50.7]} 8. a3 {[%clk 0:02:53.5]}
8... Qa5 {[%clk 0:02:31.4]} 9. Bd2 {[%clk 0:02:15]} 9... Bxc3 {[%clk 0:02:23.6]}
10. Bxc3 {[%clk 0:02:08.9]} 10... Nxc3 {[%clk 0:02:23.2]} 11. Nxc3 {[%clk
0:02:08.5]} 11... Nc6 {[%clk 0:01:58.3]} 12. dxc5 {[%clk 0:01:56.4]} 12... Qxc5
{[%clk 0:01:37.4]} 13. f4 {[%clk 0:01:26.5]} 13... Qe3+ {[%clk 0:01:30.5]} 14.
Ne2 {[%clk 0:01:23.3]} 14... g5 {[%clk 0:01:29.4]} 15. Qd3 {[%clk 0:01:09.6]}
15... gxf4 {[%clk 0:01:26.1]} 16. Qxe3 {[%clk 0:01:05.8]} 16... fxe3 {[%clk
0:01:25.8]} 17. Nf4 {[%clk 0:01:05.7]} 17... Nxe5 {[%clk 0:01:25.4]} 18. Ke2
{[%clk 0:01:04.4]} 18... d4 {[%clk 0:01:25.1]} 19. c3 {[%clk 0:01:03.6]} 19...
dxc3 {[%clk 0:01:24.2]} 20. bxc3 {[%clk 0:01:03.1]} 20... Bd7 {[%clk 0:01:22.2]}
21. Kxe3 {[%clk 0:01:03.1]} 21... Bc6 {[%clk 0:01:22.2]} 22. c4 {[%clk
0:01:00.4]} 22... O-O-O {[%clk 0:01:21.7]} 23. Be2 {[%clk 0:01:00]} 23... Rhg8
{[%clk 0:01:16.1]} 24. Rhd1 {[%clk 0:00:55]} 24... Kc7 {[%clk 0:00:55]} 25. g3
{[%clk 0:00:52.5]} 25... Nd7 {[%clk 0:00:50.2]} 26. Nh5 {[%clk 0:00:50.6]} 26...
f5 {[%clk 0:00:46.2]} 27. Nf4 {[%clk 0:00:46.4]} 27... Nc5 {[%clk 0:00:44.8]}
28. Bh5 {[%clk 0:00:41.2]} 28... e5 {[%clk 0:00:44.1]} 29. Ne2 {[%clk
0:00:38.6]} 29... Rxd1 {[%clk 0:00:33.1]} 30. Rxd1 {[%clk 0:00:38.1]} 30... Rd8
{[%clk 0:00:33.6]} 31. Rxd8 {[%clk 0:00:31.9]} 31... Kxd8 {[%clk 0:00:33.2]} 32.
Bg6 {[%clk 0:00:32.8]} 32... Bd7 {[%clk 0:00:32.9]} 33. Nc3 {[%clk 0:00:32.3]}
33... Ke7 {[%clk 0:00:29.5]} 34. Nd5+ {[%clk 0:00:32.3]} 34... Kd6 {[%clk
0:00:29.5]} 35. Nf6 {[%clk 0:00:31.5]} 35... Be6 {[%clk 0:00:27.1]} 36. h4
{[%clk 0:00:30.9]} 36... a5 {[%clk 0:00:24.5]} 37. Ne8+ {[%clk 0:00:30.5]} 37...
Ke7 {[%clk 0:00:23.6]} 38. Nc7 {[%clk 0:00:26.8]} 38... Kf6 {[%clk 0:00:23.7]}
39. Nxe6 {[%clk 0:00:24.5]} 39... Nxe6 {[%clk 0:00:21.3]} 40. Be8 {[%clk
0:00:23.8]} 40... b6 {[%clk 0:00:21.3]} 41. Bc6 {[%clk 0:00:23.5]} 41... Nc5
{[%clk 0:00:19.4]} 42. Bd5 {[%clk 0:00:21.5]} 42... e4 {[%clk 0:00:19.3]} 43.
Kf4 {[%clk 0:00:20.9]} 43... Nd3+ {[%clk 0:00:18.9]} 44. Ke3 {[%clk 0:00:21.1]}
44... Ke5 {[%clk 0:00:19.4]} 45. Bf7 {[%clk 0:00:21.1]} 45... Nc5 {[%clk
0:00:18.6]} 46. Bd5 {[%clk 0:00:20.7]} 46... Nd7 {[%clk 0:00:17.8]} 47. g4
{[%clk 0:00:20.5]} 47... f4+ {[%clk 0:00:17]} 48. Ke2 {[%clk 0:00:20.1]} 48...
Nf6 {[%clk 0:00:16.2]} 49. g5 {[%clk 0:00:19.8]} 49... f3+ {[%clk 0:00:16.4]}
50. Kf2 {[%clk 0:00:19.1]} 50... hxg5 {[%clk 0:00:15.9]} 51. hxg5 {[%clk
0:00:17.3]} 51... Nxd5 {[%clk 0:00:15.8]} 52. g6 {[%clk 0:00:16.9]} 52... Ne7
{[%clk 0:00:14.1]} 53. c5 {[%clk 0:00:17.5]} 53... bxc5 {[%clk 0:00:13.7]} 54.
g7 {[%clk 0:00:18.4]} 54... Kf4 {[%clk 0:00:13.2]} 0-1

[Event "*** SCC Grand Prix: Titled Tuesday Blitz"]
[Site "Chess.com"]
[Date "2020.06.23"]
[Round "10"]
[White "VMikhalevski"]
[Black "wonderfultime"]
[Result "0-1"]
[WhiteElo "2800"]
[BlackElo "2957"]
[TimeControl "180+1"]
[EndTime "11:57:48 PDT"]
[Termination "wonderfultime won by resignation"]

1. d4 {[%clk 0:03:00.9]} 1... d5 {[%clk 0:02:48.1]} 2. c4 {[%clk 0:02:59.6]}
2... c6 {[%clk 0:02:48.4]} 3. cxd5 {[%clk 0:02:59.9]} 3... cxd5 {[%clk
0:02:49.3]} 4. Bg5 {[%clk 0:03:00]} 4... Qb6 {[%clk 0:02:46.1]} 5. Nc3 {[%clk
0:02:59.2]} 5... e6 {[%clk 0:02:46]} 6. Qd2 {[%clk 0:02:53.2]} 6... Be7 {[%clk
0:02:44]} 7. Bxe7 {[%clk 0:02:51]} 7... Nxe7 {[%clk 0:02:44.9]} 8. Nf3 {[%clk
0:02:50.6]} 8... O-O {[%clk 0:02:44.6]} 9. e3 {[%clk 0:02:50.5]} 9... Nd7 {[%clk
0:02:43.9]} 10. Bd3 {[%clk 0:02:49.8]} 10... Nf6 {[%clk 0:02:44.5]} 11. Ne5
{[%clk 0:02:49]} 11... Bd7 {[%clk 0:02:40.5]} 12. O-O {[%clk 0:02:45.7]} 12...
Rfc8 {[%clk 0:02:39.7]} 13. Rac1 {[%clk 0:02:40.3]} 13... Qd6 {[%clk 0:02:29.8]}
14. f3 {[%clk 0:02:32.6]} 14... Rc7 {[%clk 0:02:22]} 15. Rc2 {[%clk 0:02:30.6]}
15... Rac8 {[%clk 0:02:20.5]} 16. Rfc1 {[%clk 0:02:30.6]} 16... a6 {[%clk
0:02:20.9]} 17. Qf2 {[%clk 0:02:29.6]} 17... h6 {[%clk 0:02:09.8]} 18. Qg3
{[%clk 0:02:28.3]} 18... Qb6 {[%clk 0:01:58.6]} 19. h4 {[%clk 0:01:30]} 19...
Bb5 {[%clk 0:01:52.6]} 20. Qf2 {[%clk 0:01:10.1]} 20... Ne8 {[%clk 0:01:38.9]}
21. Qf1 {[%clk 0:01:07.1]} 21... Nd6 {[%clk 0:01:36.7]} 22. g4 {[%clk
0:00:59.3]} 22... f6 {[%clk 0:01:13.3]} 23. Bxb5 {[%clk 0:00:58.3]} 23... Nxb5
{[%clk 0:01:09.5]} 24. Nd3 {[%clk 0:00:48.3]} 24... Nxc3 {[%clk 0:01:08.2]} 25.
bxc3 {[%clk 0:00:44.8]} 25... Qd6 {[%clk 0:01:06.6]} 26. Qf2 {[%clk 0:00:42.1]}
26... e5 {[%clk 0:01:05.3]} 27. Qh2 {[%clk 0:00:40.6]} 27... Nc6 {[%clk
0:01:05]} 28. g5 {[%clk 0:00:37]} 28... fxg5 {[%clk 0:00:58.3]} 29. hxg5 {[%clk
0:00:36.6]} 29... Qg6 {[%clk 0:00:58.8]} 30. Nxe5 {[%clk 0:00:32.5]} 30... Qxg5+
{[%clk 0:00:57.9]} 31. Kf2 {[%clk 0:00:28.6]} 31... Qf5 {[%clk 0:00:24]} 32. Rd2
{[%clk 0:00:13.5]} 32... Rf8 {[%clk 0:00:21.3]} 33. Qg3 {[%clk 0:00:12.7]} 33...
Nxe5 {[%clk 0:00:11.4]} 34. dxe5 {[%clk 0:00:12.5]} 34... Rc6 {[%clk 0:00:12]}
35. Rxd5 {[%clk 0:00:11.4]} 35... Rg6 {[%clk 0:00:11.7]} 36. Qf4 {[%clk
0:00:10.1]} 36... Qh5 {[%clk 0:00:11.9]} 37. Qxf8+ {[%clk 0:00:06.2]} 37... Kxf8
{[%clk 0:00:12]} 38. Ke2 {[%clk 0:00:04.8]} 38... Rg2+ {[%clk 0:00:11.7]} 39.
Kd3 {[%clk 0:00:05.5]} 39... Qxf3 {[%clk 0:00:12.2]} 40. c4 {[%clk 0:00:04.7]}
40... Qe2+ {[%clk 0:00:11.8]} 41. Kd4 {[%clk 0:00:04.6]} 41... Qb2+ {[%clk
0:00:11.8]} 42. Kc5 {[%clk 0:00:04.3]} 42... Qxc1 {[%clk 0:00:11.9]} 43. Kd6
{[%clk 0:00:04.4]} 43... Qxe3 {[%clk 0:00:12.1]} 44. Ke6 {[%clk 0:00:04.4]}
44... Rg6+ {[%clk 0:00:11.9]} 45. Kf5 {[%clk 0:00:04.1]} 45... Qg5+ {[%clk
0:00:09.3]} 46. Ke4 {[%clk 0:00:03.9]} 46... Qg4+ {[%clk 0:00:09.9]} 0-1

[Event "*** SCC Grand Prix: Titled Tuesday Blitz"]
[Site "Chess.com"]
[Date "2020.06.23"]
[Round "10"]
[White "dpruess"]
[Black "LionTheLeon_06"]
[Result "0-1"]
[WhiteElo "2502"]
[BlackElo "2705"]
[TimeControl "180+1"]
[EndTime "11:57:52 PDT"]
[Termination "LionTheLeon_06 won on time"]

1. e4 {[%clk 0:03:00.9]} 1... c5 {[%clk 0:02:59.1]} 2. Nf3 {[%clk 0:03:00.7]}
2... d6 {[%clk 0:02:59.3]} 3. d4 {[%clk 0:03:01]} 3... cxd4 {[%clk 0:03:00.2]}
4. Nxd4 {[%clk 0:03:01.8]} 4... Nf6 {[%clk 0:03:00.7]} 5. Nc3 {[%clk 0:03:02.4]}
5... a6 {[%clk 0:03:01.3]} 6. Bg5 {[%clk 0:03:02.6]} 6... e6 {[%clk 0:03:00]} 7.
f4 {[%clk 0:03:02.7]} 7... Qb6 {[%clk 0:02:59.5]} 8. Qd2 {[%clk 0:02:56.6]} 8...
Qxb2 {[%clk 0:02:58.8]} 9. Rb1 {[%clk 0:02:56.1]} 9... Qa3 {[%clk 0:02:56.8]}
10. e5 {[%clk 0:02:56.1]} 10... dxe5 {[%clk 0:02:53.9]} 11. fxe5 {[%clk
0:02:57]} 11... h6 {[%clk 0:02:54.5]} 12. Bh4 {[%clk 0:02:51.9]} 12... g5 {[%clk
0:02:54.2]} 13. Bf2 {[%clk 0:01:59.4]} 13... Ng4 {[%clk 0:02:46.1]} 14. Bg3
{[%clk 0:01:56.8]} 14... Nd7 {[%clk 0:02:44.3]} 15. Nxe6 {[%clk 0:01:25.7]}
15... fxe6 {[%clk 0:02:32.1]} 16. Be2 {[%clk 0:01:25.6]} 16... h5 {[%clk
0:01:40.5]} 17. Rb3 {[%clk 0:00:51.7]} 17... Qe7 {[%clk 0:01:08.4]} 18. O-O
{[%clk 0:00:49.9]} 18... h4 {[%clk 0:00:48.7]} 19. Bxg4 {[%clk 0:00:28.2]} 19...
hxg3 {[%clk 0:00:48.1]} 20. h3 {[%clk 0:00:25.5]} 20... Nxe5 {[%clk 0:00:45.1]}
21. Be2 {[%clk 0:00:17.4]} 21... Bd7 {[%clk 0:00:38.5]} 22. Ne4 {[%clk
0:00:16.2]} 22... O-O-O {[%clk 0:00:31.1]} 23. Qd4 {[%clk 0:00:15.8]} 23... Ng6
{[%clk 0:00:18.6]} 24. Qa7 {[%clk 0:00:15]} 24... Bc6 {[%clk 0:00:17.4]} 25. Bf3
{[%clk 0:00:14.4]} 25... Ne5 {[%clk 0:00:15.4]} 26. Rfb1 {[%clk 0:00:09.8]}
26... Nxf3+ {[%clk 0:00:15.3]} 27. gxf3 {[%clk 0:00:09.6]} 27... Bxe4 {[%clk
0:00:13.7]} 28. Rc3+ {[%clk 0:00:09]} 28... Kd7 {[%clk 0:00:10.6]} 29. fxe4
{[%clk 0:00:07.4]} 29... Ke8 {[%clk 0:00:07.7]} 30. Rxb7 {[%clk 0:00:07.7]}
30... Qf6 {[%clk 0:00:07]} 31. Rxg3 {[%clk 0:00:05.1]} 31... Qd4+ {[%clk
0:00:03.8]} 32. Qxd4 {[%clk 0:00:04.1]} 32... Rxd4 {[%clk 0:00:04.7]} 33. Rb8+
{[%clk 0:00:03.8]} 33... Kf7 {[%clk 0:00:04.5]} 34. Rb7+ {[%clk 0:00:04.7]}
34... Kf6 {[%clk 0:00:04.3]} 35. Rf3+ {[%clk 0:00:04.8]} 35... Kg6 {[%clk
0:00:03.8]} 36. e5 {[%clk 0:00:04.9]} 36... Bg7 {[%clk 0:00:03]} 37. Rb6 {[%clk
0:00:05.1]} 37... Re8 {[%clk 0:00:02.3]} 38. Rxa6 {[%clk 0:00:04.9]} 38... Bxe5
{[%clk 0:00:02.7]} 39. Re3 {[%clk 0:00:04.8]} 39... Rd5 {[%clk 0:00:03.2]} 40.
Re4 {[%clk 0:00:05]} 40... Rc5 {[%clk 0:00:03.4]} 41. c4 {[%clk 0:00:04.9]}
41... Kf5 {[%clk 0:00:03.7]} 42. Re1 {[%clk 0:00:03.8]} 42... Rxc4 {[%clk
0:00:04]} 43. Ra5 {[%clk 0:00:04]} 43... Re4 {[%clk 0:00:03.9]} 44. Rxe4 {[%clk
0:00:03.8]} 44... Kxe4 {[%clk 0:00:04.1]} 45. a4 {[%clk 0:00:04.5]} 45... Bd4+
{[%clk 0:00:03.9]} 46. Kg2 {[%clk 0:00:04.3]} 46... Be3 {[%clk 0:00:03.3]} 47.
Rb5 {[%clk 0:00:03.9]} 47... Rd8 {[%clk 0:00:03.5]} 48. Rb4+ {[%clk 0:00:01.4]}
48... Kf5 {[%clk 0:00:03.4]} 0-1

[Event "*** SCC Grand Prix: Titled Tuesday Blitz"]
[Site "Chess.com"]
[Date "2020.06.23"]
[Round "10"]
[White "kingofkolkata"]
[Black "Mikhal867"]
[Result "0-1"]
[WhiteElo "2238"]
[BlackElo "2364"]
[TimeControl "180+1"]
[EndTime "11:57:53 PDT"]
[Termination "Mikhal867 won by checkmate"]

1. d4 {[%clk 0:03:00.9]} 1... Nf6 {[%clk 0:02:57.8]} 2. c4 {[%clk 0:02:59.1]}
2... g6 {[%clk 0:02:57.9]} 3. Nc3 {[%clk 0:02:58.1]} 3... Bg7 {[%clk 0:02:57.8]}
4. e4 {[%clk 0:02:58.5]} 4... O-O {[%clk 0:02:57.6]} 5. Nf3 {[%clk 0:02:58.4]}
5... d6 {[%clk 0:02:57.4]} 6. Be2 {[%clk 0:02:58.9]} 6... e5 {[%clk 0:02:58]} 7.
O-O {[%clk 0:02:59.2]} 7... Nc6 {[%clk 0:02:58.5]} 8. d5 {[%clk 0:02:59.3]} 8...
Ne7 {[%clk 0:02:58.8]} 9. Ne1 {[%clk 0:03:00]} 9... Nd7 {[%clk 0:02:58.3]} 10.
Nd3 {[%clk 0:03:00.5]} 10... f5 {[%clk 0:02:58.7]} 11. f3 {[%clk 0:03:01.2]}
11... a5 {[%clk 0:02:57.6]} 12. Bd2 {[%clk 0:02:59.9]} 12... f4 {[%clk
0:02:51.4]} 13. a4 {[%clk 0:02:59.4]} 13... b6 {[%clk 0:02:49.8]} 14. b4 {[%clk
0:02:58.8]} 14... axb4 {[%clk 0:02:48.9]} 15. Nxb4 {[%clk 0:02:59.7]} 15... Nc5
{[%clk 0:02:47.9]} 16. Be1 {[%clk 0:02:54.9]} 16... Bd7 {[%clk 0:02:46]} 17. Nb5
{[%clk 0:02:43.8]} 17... g5 {[%clk 0:02:40]} 18. Bf2 {[%clk 0:02:43.4]} 18... h5
{[%clk 0:02:37.7]} 19. Bxc5 {[%clk 0:02:18.9]} 19... dxc5 {[%clk 0:02:32.7]} 20.
Nd3 {[%clk 0:02:00.5]} 20... Nc8 {[%clk 0:02:31.6]} 21. Qd2 {[%clk 0:01:52.5]}
21... Nd6 {[%clk 0:02:20.4]} 22. Nf2 {[%clk 0:01:46.6]} 22... Ra5 {[%clk
0:02:09.6]} 23. Rfb1 {[%clk 0:01:41.1]} 23... Rf6 {[%clk 0:02:07.7]} 24. Nd3
{[%clk 0:01:36.3]} 24... Nxc4 {[%clk 0:02:05.5]} 25. Qc3 {[%clk 0:01:31.8]}
25... Bxb5 {[%clk 0:01:59.5]} 26. axb5 {[%clk 0:01:28]} 26... Rxa1 {[%clk
0:01:58.8]} 27. Rxa1 {[%clk 0:01:27.6]} 27... Ne3 {[%clk 0:01:51.6]} 28. Ra7
{[%clk 0:01:06.5]} 28... Rf8 {[%clk 0:01:48.4]} 29. Qa3 {[%clk 0:00:57.2]} 29...
g4 {[%clk 0:01:41.9]} 30. Nb2 {[%clk 0:00:48.2]} 30... h4 {[%clk 0:01:35.5]} 31.
Nc4 {[%clk 0:00:44.9]} 31... Nc2 {[%clk 0:01:22.3]} 32. Qa6 {[%clk 0:00:29.6]}
32... Nd4 {[%clk 0:01:21.6]} 33. Bd1 {[%clk 0:00:24.5]} 33... h3 {[%clk
0:01:05.6]} 34. d6 {[%clk 0:00:22.8]} 34... gxf3 {[%clk 0:00:54.7]} 35. dxc7
{[%clk 0:00:20.3]} 35... Qg5 {[%clk 0:00:54.6]} 36. Qa2 {[%clk 0:00:06]} 36...
fxg2 {[%clk 0:00:42.5]} 37. Nxe5+ {[%clk 0:00:03.4]} 37... Kh7 {[%clk
0:00:40.3]} 38. Nf3 {[%clk 0:00:03]} 38... Nxf3+ {[%clk 0:00:37.9]} 39. Bxf3
{[%clk 0:00:03.2]} 39... Qe5 {[%clk 0:00:37.7]} 40. c8=Q {[%clk 0:00:02.6]}
40... Rxc8 {[%clk 0:00:32.6]} 41. Qf2 {[%clk 0:00:03.5]} 41... Qd4 {[%clk
0:00:28.1]} 42. Rxg7+ {[%clk 0:00:02.9]} 42... Kxg7 {[%clk 0:00:26.9]} 43. e5
{[%clk 0:00:03]} 43... Re8 {[%clk 0:00:24.9]} 44. e6 {[%clk 0:00:02.9]} 44...
Rxe6 {[%clk 0:00:24.2]} 45. Qxd4+ {[%clk 0:00:03]} 45... cxd4 {[%clk 0:00:23.5]}
46. Kf2 {[%clk 0:00:03.9]} 46... d3 {[%clk 0:00:23.4]} 47. Bd1 {[%clk
0:00:03.3]} 47... d2 {[%clk 0:00:22.9]} 48. Kf3 {[%clk 0:00:03.1]} 48... g1=Q
{[%clk 0:00:20.5]} 49. Kxf4 {[%clk 0:00:04]} 49... Qe3+ {[%clk 0:00:19.5]} 50.
Kf5 {[%clk 0:00:04.9]} 50... Rf6+ {[%clk 0:00:19]} 51. Kg4 {[%clk 0:00:05.8]}
51... Rf4+ {[%clk 0:00:18]} 52. Kg5 {[%clk 0:00:05.8]} 52... Qe5# {[%clk
0:00:17.3]} 0-1